Cogmind - Beta 13 @@@ ROGUE MODE // 2024.07.29 @ 19:06:45 Player: jimmyl Result: Destroyed by G-34 Mercenary with Small Laser Performance ------------- Evolutions (0) 0 Regions Visited (1) 200 Robots Destroyed (13) 65 Value Destroyed (442) 442 Prototype IDs (0) 0 Alien Tech Used (0) 0 Bonus (0) 0 TOTAL SCORE: 707 Bonus ------- None Cogmind --------- Core Integrity 0/250 Matter 287/300 Energy 250/250 System Corruption 3% Temperature Cool (12) Movement Rolling (115) Ox1 Location -10/Materials Parts ------- > --- POWER (1) -------- Ion Engine > --- PROPULSION (2) --- Compact Wheel > --- UTILITY (2) ------ Heat Sink Medium Storage Unit > --- WEAPON (2) ------- Small Laser Light Assault Rifle > --- INVENTORY (10) --- Light Ion Engine Visual Processing Unit Light Assault Rifle Datajack Peak State ------------ > --- POWER ------------ Ion Engine > --- PROPULSION ------- Light Treads Light Treads > --- UTILITY ---------- Heat Sink Small Storage Unit > --- WEAPON ----------- EM Pulse Gun Medium Laser > --- INVENTORY -------- Light Ion Engine Compact Wheel Small Laser [Rating: 7] Favorites ----------- Power Ion Engine Engine Ion Engine Propulsion Light Treads Treads Light Treads Wheel Compact Wheel Utility Heat Sink Device Heat Sink Storage Medium Storage Unit Weapon Medium Laser Energy Gun Medium Laser Ballistic Gun Light Assault Rifle Special Melee Weapon Datajack Build | -11 -10 ------- Run | Yrd Mat Slots Evolved . | . . Power . | . . Propulsion . | . . Utility . | . . Weapon . | . . Parts Attached 16 | 6 10 Power 3 | 1 2 Engine 3 | 1 2 Core . | . . Reactor . | . . Propulsion 3 | 2 1 Treads 2 | 2 . Leg . | . . Wheel 1 | . 1 Hover . | . . Flight . | . . Utility 3 | 1 2 Device 1 | . 1 Storage 2 | 1 1 Processor . | . . Hackware . | . . Protection . | . . Artifact . | . . Weapon 7 | 2 5 Energy Gun 4 | 2 2 Energy Cannon . | . . Ballistic Gun 2 | . 2 Ballistic Cannon . | . . Launcher . | . . Special Weapon . | . . Impact Weapon . | . . Slashing Weapon . | . . Piercing Weapon . | . . Special Melee Weapon 1 | . 1 Unidentified Prototypes . | . . Parts Lost 4 | . 4 Power 1 | . 1 Propulsion 1 | . 1 Utility . | . . Weapon 2 | . 2 Highest Loss Streak 3 | . 3 To Critical Strikes . | . . Average Slot Usage (%) 95 | . 95 Engine 12 | . 12 Treads 25 | . 25 Device 13 | . 13 Storage 14 | . 14 Energy Gun 22 | . 22 Ballistic Gun 1 | . 1 Special Melee Weapon 3 | . 3 Naked Turns . | . . Heaviest Build 20 | 14 20 Greatest Support 40 | 40 40 Greatest Overweight (x) 1 | . 1 Average Overweight (x) . | . . Largest Inventory Capacity 10 | 8 10 Average Capacity 8 | 7 9 Most Carried 7 | 3 7 Average Carried 4 | 2 4 Final Capacity 10 | 8 10 Final Carried 4 | 3 4 Class Distribution -------------------- 100% | Mutant Dominant Class ---------------- Mutant | -10/Materials Resources | -11 -10 ----------- Run | Yrd Mat Matter Collected 342 | 208 134 Remotely . | . . Salvage Created 499 | . 499 Parts 21 | . 21 Haulers Intercepted . | . . Recyclers Shooed . | . . Parts Field Recycled . | . . Retrieved Matter . | . . Parts Self-Destructed . | . . Prevented . | . . Kills | -11 -10 ------- Run | Yrd Mat Combat Hostiles Destroyed 11 | . 11 Guns 9 | . 9 AOE 2 | . 2 Classes Destroyed 2 | . 2 Watcher 2 | . 2 Grunt 11 | . 11 Best Kill Streak 3 | . 3 Combat Bots Only 3 | . 3 Max Kills in Single Turn 2 | . 2 Gunslinging . | . . Exploded 2 | . 2 Melee . | . . Uniques/NPCs Destroyed . | . . Combat | -11 -10 -------- Run | Yrd Mat Hostile Shots Fired 72 | . 72 Missed 16 | . 16 Damage Taken 878 | . 878 Core 255 | . 255 Absorbed by Shields . | . . Core Remaining (%) 100 | 100 . Volleys Fired 35 | . 35 Largest 2 | . 2 Hottest 90 | . 90 Shots Fired 66 | . 66 Gun 66 | . 66 Cannon . | . . Launcher . | . . Special . | . . Kinetic 10 | . 10 Thermal 43 | . 43 Explosive . | . . Electromagnetic 13 | . 13 Robot Hit Streak 13 | . 13 Robot Miss Streak 2 | . 2 Penetration Max . | . . Secondary Targets 3 | . 3 Max Gunslinging Chain 1 | . 1 Shots Hit Robots 52 | . 52 Core Hits 27 | . 27 Critical Kills . | . . Critical Parts Destroyed . | . . Critical Strikes 3 | . 3 Burn 3 | . 3 Melee Attacks . | . . Impact . | . . Slashing . | . . Piercing . | . . Sneak Attacks . | . . Combat Hostiles . | . . Follow-up Attacks . | . . Damage Inflicted 741 | . 741 Guns 616 | . 616 Cannons . | . . Explosions 125 | . 125 Melee . | . . Ramming . | . . Kinetic 51 | . 51 Thermal 520 | . 520 Explosive . | . . Electromagnetic 170 | . 170 Impact . | . . Slashing . | . . Piercing . | . . Highest Corruption 3 | . 3 Average Corruption 1 | . 1 Corruption Purged . | . . Corruption Blocked . | . . Effects 6 | . 6 Message Errors 1 | . 1 Matter Fused 1 | . 1 Heat Flow Errors 1 | . 1 Parts Rejected 1 | . 1 Data Loss (major) 1 | . 1 Alerts 1 | . 1 Overload Shots . | . . Overflow Damage . | . . Projectiles . | . . Explosions . | . . Melee . | . . Knockbacks . | . . Impact . | . . Kinetic . | . . Secondary . | . . Self-Inflicted Damage 138 | . 138 Shots 3 | . 3 Rammed . | . . Targets Rammed . | . . Kicked . | . . Crushed . | . . Highest Temperature 104 | . 104 Average Temperature 36 | . 36 Received Heat Transfer 438 | . 438 Siege Activations . | . . Robots Corrupted . | . . Combat Hostiles . | . . Parts Fried . | . . Impact Corruptions . | . . Robots Melted . | . . Combat Hostiles . | . . Parts Melted 5 | . 5 Heat Transferred 1289 | . 1289 Parts Sabotaged . | . . Parts Stolen . | . . Parts Stripped . | . . Power Chain Reactions 2 | . 2 Alert | -11 -10 ------- Run | Yrd Mat Peak Influence 292 | . 292 Initial . | . . Average 109 | . 125 Maximum Alert Level 1 | . 1 Low Security (%) 83 | 100 80 Level 1 16 | . 19 Level 2 . | . . Level 3 . | . . Level 4 . | . . Level 5 . | . . High Security . | . . Max Security . | . . Squads Dispatched 3 | . 3 Investigation 3 | . 3 Extermination . | . . Reinforcement . | . . Assault . | . . Garrison . | . . Intercept . | . . Searches Triggered . | . . Construction Impeded . | . . Haulers Reinforced . | . . Active Scanning Responses . | . . Cargo Convoy Interrupts . | . . Stealth | -11 -10 --------- Run | Yrd Mat Distress Signals . | . . Communications Jammed . | . . Distress Signals . | . . Times Spotted 15 | . 15 Peak Tracking Total 4 | . 4 Tactical Retreats . | . . Traps | -11 -10 ------- Run | Yrd Mat Traps Triggered 6 | . 6 Indirectly . | . . Trap Hack Attempts 30 | . 30 Triggered . | . . Disarmed . | . . Reprogrammed 4 | . 4 Reused . | . . Traps Extracted . | . . Installed . | . . Triggered . | . . Machines | -11 -10 ---------- Run | Yrd Mat Machines Disabled 1 | . 1 Max in Single Turn 1 | . 1 Machines Repaired . | . . Machines Dismantled . | . . Machines Sabotaged . | . . Overloaded Fab Kills . | . . Hacking | -11 -10 --------- Run | Yrd Mat Machines Accessed 2 | . 2 Terminals 2 | . 2 Fabricators . | . . Repair Stations . | . . Recycling Units . | . . Scanalyzers . | . . Garrison Access . | . . Total Hacks 6 | . 6 Successful . | . . Failed 6 | . 6 Catastrophic 1 | . 1 Database Lockouts . | . . Manual 4 | . 4 Terminals 6 | . 6 Fabricators . | . . Repair Stations . | . . Recycling Units . | . . Scanalyzers . | . . Garrison Access . | . . Terminal Hacks . | . . Fabricator Hacks . | . . Repair Station Hacks . | . . Recycling Unit Hacks . | . . Scanalyzer . | . . Garrison Access Hacks . | . . Unauthorized Hacks . | . . Terminals . | . . Fabricators . | . . Repair Stations . | . . Recycling Units . | . . Scanalyzers . | . . Garrison Access . | . . Data Cores Recovered . | . . Used . | . . Hacking Detections 2 | . 2 Full Trace Events 1 | . 1 Feedback Events . | . . Feedback Blocked . | . . Robot Schematics Acquired . | . . Robots Built . | . . Authchips . | . . Time . | . . Total Robot Build Rating . | . . Part Schematics Acquired . | . . Parts Built . | . . Authchips . | . . Time . | . . Total Part Build Rating . | . . Parts Repaired . | . . Time . | . . Parts Recycled . | . . Recycled Matter . | . . Retrieved Matter . | . . Retrieved Components . | . . Parts Scanalyzed . | . . Part Schematics Acquired . | . . Parts Damaged . | . . Bothacking | -11 -10 ------------ Run | Yrd Mat Used RIF Installer . | . . Robots Hacked . | . . Non-combat . | . . Combat . | . . Robot Hacks Applied . | . . Relay Couplers Released . | . . Fabnet Peak Effective % . | . . Robots Rewired . | . . Allies Hacked . | . . Hacks Repelled . | . . Allies | -11 -10 -------- Run | Yrd Mat Total Allies . | . . Largest Group . | . . Highest-Rated Group . | . . Highest-Rated Ally . | . . Total Orders . | . . Ally Attacks . | . . Total Damage . | . . Kills . | . . Allies Corrupted . | . . Allies Melted . | . . Intel | -11 -10 ------- Run | Yrd Mat Robot Analysis Total . | . . Derelict Logs Recovered . | . . Drone Launches . | . . Drone Recoveries . | . . Exploration | -11 -10 ------------- Run | Yrd Mat Turns Passed 875 | 110 765 Spaces Moved 360 | 64 296 Core 6 | 6 . Treads 329 | 58 271 Legs . | . . Wheels 25 | . 25 Hover . | . . Flight . | . . Fastest Speed 50 | 50 115 Average Speed 155 | 149 156 Slowest Speed 160 | 160 160 Overloaded Moves . | . . Propulsion Burnouts . | . . Robots Hopped . | . . Cave-ins Triggered . | . . Exploration Rate (%) 30 | 5 56 Regions Visited 1 Branch Regions . Pre-discovered Areas . | . . Known Exits Taken . | . . Unknown Exits Taken 1 | 1 . Scrap Searched . | . . Spaces Dug . | . . Terrain Destroyed 40 | . 40 Melee . | . . Projectile . | . . AOE 40 | . 40 Terrain Rammed . | . . Walls Destroyed . | . . Machines Disabled . | . . Actions | -11 -10 --------- Run | Yrd Mat Total 613 | 78 535 Wait 153 | . 153 Move 359 | 63 296 Hop . | . . Pick Up 18 | 9 9 Fast Attach . | . . Attach 13 | 6 7 Detach . | . . Swap 3 | . 3 Drop 2 | . 2 Fire 35 | . 35 Melee . | . . Ram . | . . Kick . | . . Crush . | . . Escape Stasis . | . . Rewire . | . . Trap 30 | . 30 Miscellaneous . | . . Route ------- -11/Scrapyard -10/Materials (discovered 1 exit: [*Mat]) History --------- Turn | Location | Event 47 | -11/Scrapyard | Discovered new exit (range 14) 111 | -11/Scrapyard | Entered Materials 310 | -10/Materials | Build established: Mutant 379 | -10/Materials | Discovered new exit (range 9) 775 | -10/Materials | Core integrity fell below 50% 799 | -10/Materials | Core integrity fell below 20% 821 | -10/Materials | Lost 3 parts (1p1n1w) 876 | -10/Materials | Destroyed by G-34 Mercenary with Small Laser Last Messages --------------- 00791_ Acquired Lgt. Assault Rifle. 00792_ R-06 Scavenger collects Lgt. Ion Engine. 00793_ M-13 Machinist repairs G-47 Trooper. 00793_ Acquired Lgt. Assault Rifle. 00796_ R-06 Scavenger collects Wheel. 00798_ Ion Engine melted. 00798_ G-34 Mercenary destroyed. 00798_ Switching to secondary target: G-47 Trooper. 00800_ R-06 Scavenger collects Sml. Laser. 00809_ G-47 Trooper destroyed. 00815_ R-06 Scavenger collects Lgt. Nuclear Core. 00820_ Acquired 22 matter. 00826_ Dropped Lgt. Treads. 00838_ Acquired 20 matter. 00850_ System corrupted: Substantial component data lost. 00868_ System corrupted: Lgt. Assault Rifle rejected. 00870_ Acquired Lgt. Assault Rifle. 00872_ Critical hit (Burn: +37). Map ----- +----------------------------------------------------+ | | | | | | | | | | | | | | | | | | | | | | | | | | | | | | | | | ????????????????????##########???????????????????? | | ????????????????????# #???????????????????? | | ????????????????????# ^[/ #???????????????????? | | ??????########??????# [ !/ #???????????????????? | | #######* #??????# ^ ! #???????????????????? | | # """ ######## ^ #???????????????????? | | # """ # # #???????????????????? | | """" # """ # """ # % %% #???????????????????? | | """" # """ # """ # ######??????????????? | | """" #? # """ # g @ # #??????????????? | | ####+### ##+###g### #??????????????? | | ###+#+## #/ ## + #??????????????? | | ??# ###+##+## ^r## #??????????????? | | ??# ## #??????????????? | | ??# ########### ##% #??????????????? | | ??# #?????????# ## ! #??????????????? | | ?## #######???###??# ## #??????????????? | | ?# + ???# ## #??????????????? | | ?# ##### """ "???# ^^^###+##??????????????? | | ?# #???# """ ????# ??????????????? | | ?# #???# """ ????/ ????????????? | | ?####### #???# ?????# ]] ??????????? | | ???????# #???# ?????# ]! """????????? | | ???????# #???# ! ??????# ] """???????? | | ??######+##### ??????# ????????? | | ??# ###+###????# ???????? | | ??# # ###### ??????? | | ??# # #?????? | | ??# ! / + ############## #?????? | | ??# # #??????????????#?????? | | ??# # ###+#######????????????????????? | | ??# ! ## ## #????????????????????? | | ??# ## # #????????????????????? | | ??############ [ # #????????????????????? | +----------------------------------------------------+ Best States ------------- Heat Dissipation 35 Energy Generation 10 Energy Capacity 250 Matter Stores 300 Matter Capacity 300 Sight Range 16 Terrain Scan Density 10 Evasion (%) 40 Recoil Reduction 2 Item Schematics ----------------- None Robot Schematics ------------------ None Fabricated ------------ Nothing Alien Tech Used ----------------- None Achievements -------------- Hehehe Challenges ------------ Trapped Unstable Evolution Game ------ Seed GravitySalvageMeganuke Manual? 0 Play Time 00:06:37 Cumulative 77.9 hours Start 2024.07.28 @ 14:42:20 End 2024.07.29 @ 19:06:45 Sessions 3 Manual Loads 0 Difficulty Rogue Special Mode None Game No. 134 Rogue 134 Adventurer 0 Explorer 0 Win Type - Total 0 Types 0/0/0/0/0/0/0/0/0 Lore% 50 Gallery% 60 Achievement% 44 Wizard Run 0 Options --------- Layout 1 ASCII 0 Keyboard 0 Movement Mouse Keybinds 0 Fullscreen 2 Font 20/SmallcapsGlow Map View 54x42 Zoom Use 0% Tactical HUD 1 Map Filters NONE Filters NONE Steam 0 RUN: d86b8d9f-242b-4c85-8ef7-ae9f91cd15b0